Cogmind - Beta 16 @@@ ROGUE MODE // 2025.11.11 @ 16:12:14 Player: Lazz Result: Smashed by cave-in Performance ------------- Evolutions (1) 500 Regions Visited (3) 600 Robots Destroyed (16) 80 Value Destroyed (260) 260 Prototype IDs (0) 0 Alien Tech Used (0) 0 Bonus (0) 0 TOTAL SCORE: 1440 Bonus ------- None Cogmind --------- Core Integrity 0/400 Matter 84/300 Energy 99/100 System Corruption 7% Temperature Cool (0) Movement Core (50) Location -9/Mines Parts ------- > --- POWER (1) -------- (None) > --- PROPULSION (2) --- (None) > --- UTILITY (4) ------ (None) > --- WEAPON (2) ------- Mini Grenade Launcher > --- INVENTORY (5) ---- Light Ion Engine Light Ion Engine Propulsion Shielding Shield Generator Peak State ------------ > --- POWER ------------ Improved Ion Engine > --- PROPULSION ------- Light Treads Light Treads > --- UTILITY ---------- Small Storage Unit Terrain Scanner Terrain Scan Processor > --- WEAPON ----------- EM Pulse Gun Grenade Launcher > --- INVENTORY -------- Aluminum Leg [Rating: 10] Favorites ----------- Power Improved Ion Engine Engine Improved Ion Engine Propulsion Aluminum Leg Treads Light Treads Leg Aluminum Leg Flight Unit VTOL Module Utility Small Storage Unit Device Seismic Detector Storage Small Storage Unit Processor Terrain Scan Processor Weapon Small Laser Energy Gun Small Laser Ballistic Gun Assault Rifle Launcher Grenade Launcher Special Weapon Mining Laser Build | -11 -10 -9 -9 ------- Run | Yrd Mat Mat Min Slots Evolved 2 | . . 2 . Power . | . . . . Propulsion . | . . . . Utility 2 | . . 2 . Weapon . | . . . . Parts Attached 22 | 8 . 10 4 Power 3 | 1 . 2 . Engine 3 | 1 . 2 . Core . | . . . . Reactor . | . . . . Propulsion 6 | 2 . 2 2 Treads 2 | . . 2 . Leg 2 | 2 . . . Wheel . | . . . . Hover . | . . . . Flight 2 | . . . 2 Utility 5 | 2 . 2 1 Device 3 | 1 . 1 1 Storage 1 | 1 . . . Processor 1 | . . 1 . Hackware . | . . . . Protection . | . . . . Artifact . | . . . . Weapon 8 | 3 . 4 1 Energy Gun 3 | 1 . 2 . Energy Cannon . | . . . . Ballistic Gun 1 | 1 . . . Ballistic Cannon . | . . . . Launcher 2 | . . 1 1 Special Weapon 2 | 1 . 1 . Impact Weapon . | . . . . Slashing Weapon . | . . . . Piercing Weapon . | . . . . Special Melee Weapon . | . . . . Unidentified Prototypes . | . . . . Parts Lost 19 | . 1 8 10 Power 3 | . 1 1 1 Propulsion 5 | . . 1 4 Utility 5 | . . 2 3 Weapon 6 | . . 4 2 Highest Loss Streak 7 | . 1 7 4 To Critical Strikes . | . . . . Average Backups 3 | 4 5 3 3 Power . | . 1 . 1 Propulsion 1 | 1 2 1 1 Utility . | . . . . Weapon 1 | 1 2 1 . Tool/Special . | . . . . Unused Backups 4 | . . . 4 Power 2 | . . . 2 Propulsion . | . . . . Utility 2 | . . . 2 Weapon . | . . . . Tool/Special . | . . . . Average Slot Usage (%) 64 | . 98 66 54 Engine 7 | . 12 5 8 Treads 8 | . . 3 17 Leg 9 | . 28 12 . Flight 1 | . . . 2 Device 8 | . 14 9 5 Storage 11 | . 14 11 11 Processor 2 | . . 4 . Energy Gun 8 | . 14 11 3 Ballistic Gun 1 | . 4 2 . Launcher 3 | . . 1 5 Special Weapon 3 | . 9 5 . Peak Build Rating 10 | 7 7 10 10 Average Rating 6 | 5 6 6 6 On Entrance 5 | . 7 6 8 Avg Prop Armor Cover (%) 9 | . 9 . . Naked Turns . | . . . . Heaviest Build 18 | 12 12 18 18 Greatest Support 40 | 20 20 40 40 Greatest Overweight (x) 2 | . . . 2 Average Overweight (x) . | . . . . Largest Inventory Capacity 8 | 8 8 8 8 Average Capacity 7 | 7 8 8 8 Most Carried 8 | 6 5 5 8 Average Carried 3 | 4 5 3 3 Final Capacity 8 | 8 8 8 5 Final Carried 5 | 5 5 . 4 Class Distribution -------------------- 100% | Mutant Dominant Class ---------------- Mutant | -10/Materials Mutant | -9/Materials Mutant | -9/Mines Resources | -11 -10 -9 -9 ----------- Run | Yrd Mat Mat Min Matter Collected 452 | 251 19 32 150 Remotely . | . . . . Salvage Created 325 | 145 48 85 47 Parts 35 | 10 9 10 6 Haulers Intercepted . | . . . . Recyclers Shooed . | . . . . Parts Field Recycled . | . . . . Retrieved Matter . | . . . . Parts Self-Destructed . | . . . . Prevented . | . . . . Parts Restored . | . . . . Kills | -11 -10 -9 -9 ------- Run | Yrd Mat Mat Min Combat Hostiles Destroyed 13 | . 3 2 8 Guns 4 | . 3 1 . AOE 9 | . . 1 8 Classes Destroyed 7 | 2 1 2 2 Worker 2 | . . . 2 Builder 2 | . . 2 . Tunneler 3 | 3 . . . Recycler 1 | 1 . . . Swarmer 6 | . 3 . 3 Grunt 2 | . . 2 . Assembled 5 | . . . 5 Best Kill Streak 7 | 4 3 4 7 Combat Bots Only 4 | . 3 2 4 Max Kills in Single Turn 3 | 1 1 3 2 Gunslinging . | . . . . Exploded 2 | . . 1 2 Melee . | . . . . Uniques/NPCs Destroyed . | . . . . Combat | -11 -10 -9 -9 -------- Run | Yrd Mat Mat Min Hostile Shots Fired 101 | . 13 51 37 Missed 21 | . 4 8 9 Hits 80 | . 9 43 28 Projectile 80 | . 9 43 28 AOE 9 | . . . 9 Critical Strikes 1 | . . 1 . Part Disruptions 1 | . 1 . . Damage Taken 1662 | . 110 746 806 Core 425 | . 17 158 250 Absorbed by Shields . | . . . . Core Remaining (%) 96 | 100 93 . . Volleys Fired 77 | 17 11 27 22 Largest 2 | 2 2 2 1 Hottest 100 | 100 100 100 40 Shots Fired 95 | 29 15 29 22 Gun 48 | 24 8 14 2 Cannon . | . . . . Launcher 23 | . . 3 20 Special 24 | 5 7 12 . Kinetic 26 | 12 4 10 . Thermal 42 | 17 11 14 . Explosive 23 | . . 3 20 Electromagnetic 4 | . . 2 2 Robot Hit Streak 6 | 4 2 6 2 Robot Miss Streak 8 | 4 3 3 8 Penetration Max . | . . . . Secondary Targets . | . . . . Shots Hit Robots 31 | 12 3 13 3 Core Hits 27 | 5 3 4 15 Critical Kills . | . . . . Critical Parts Destroyed . | . . . . Critical Strikes . | . . . . Melee Attacks . | . . . . Impact . | . . . . Slashing . | . . . . Piercing . | . . . . Sneak Attacks . | . . . . Combat Hostiles . | . . . . Follow-up Attacks . | . . . . Damage Inflicted 1334 | 145 32 432 725 Guns 315 | 145 32 138 . Cannons . | . . . . Explosions 984 | . . 259 725 Melee . | . . . . Ramming 9 | . . 9 . Kinetic 204 | 68 22 114 . Thermal 144 | 77 10 57 . Explosive 953 | . . 228 725 Electromagnetic 24 | . . 24 . Impact . | . . . . Slashing . | . . . . Piercing . | . . . . Highest Corruption 2 | . . 2 2 Average Corruption 2 | . . 2 2 Corruption Purged . | . . . . Corruption Blocked . | . . . . Effects 8 | . . 2 6 Message Errors 1 | . . . 1 Heat Flow Errors 1 | . . . 1 Energy Discharges 3 | . . 1 2 Data Loss (minor) 3 | . . 1 2 Overload Shots . | . . . . Overflow Damage 129 | . . 78 51 Projectiles . | . . . . Explosions 129 | . . 78 51 Melee . | . . . . Knockbacks . | . . . . Impact . | . . . . Kinetic . | . . . . Secondary . | . . . . Self-Inflicted Damage 416 | . 43 150 223 Shots 14 | . 2 3 9 Rammed . | . . . . Targets Rammed . | . . . . Kicked . | . . . . Crushed . | . . . . Highest Temperature 165 | 44 82 160 165 Average Temperature 42 | 16 35 50 92 Received Heat Transfer 333 | . . 333 . Siege Activations . | . . . . Martial Activations . | . . . . Shielding Activations . | . . . . Robots Disrupted . | . . . . Combat Hostiles . | . . . . Robots Corrupted . | . . . . Combat Hostiles . | . . . . Parts Fried . | . . . . Impact Corruptions . | . . . . Robots Melted . | . . . . Combat Hostiles . | . . . . Parts Melted . | . . . . Heat Transferred 325 | 175 25 125 . Parts Sabotaged . | . . . . Parts Stolen . | . . . . Parts Stripped . | . . . . Power Chain Reactions 2 | . 1 1 . Alert | -11 -10 -9 -9 ------- Run | Yrd Mat Mat Min Maximum Alert Level . | . . . . Low Security (%) 100 | 100 100 100 100 Level 1 . | . . . . Level 2 . | . . . . Level 3 . | . . . . Level 4 . | . . . . Level 5 . | . . . . High Security . | . . . . Max Security . | . . . . Peak Influence 121 | 10 85 121 98 Initial 31 | . . 31 7 Average 34 | . 20 50 36 Influence Increases 508 | 20 108 176 204 Destroy 0b10 Robot/C 160 | . 60 40 60 Destroy 0b10 Robot/NC 40 | 20 . 10 10 Destroy Leader 30 | . 10 10 10 Disable Machine 120 | . 30 45 45 Destroy Structure 143 | . 8 71 64 Lose Combat Pursuer 15 | . . . 15 Influence Decreases 492 | 20 33 232 207 Entered New Map 56 | . . 44 12 Time Decay 305 | 20 23 146 116 Lost Part 131 | . 10 42 79 Squads Dispatched . | . . . . Investigation . | . . . . Extermination . | . . . . Reinforcement . | . . . . Assault . | . . . . Garrison . | . . . . Intercept . | . . . . Searches Triggered . | . . . . Construction Impeded . | . . . . Haulers Reinforced . | . . . . Active Scanning Responses . | . . . . Cargo Convoy Interrupts . | . . . . Stealth | -11 -10 -9 -9 --------- Run | Yrd Mat Mat Min Distress Signals 1 | . . 1 . Communications Jammed . | . . . . Distress Signals . | . . . . Times Spotted 29 | . 4 5 20 Peak Tracking Total 11 | . 3 4 11 Tactical Retreats 2 | . . . 2 Traps | -11 -10 -9 -9 ------- Run | Yrd Mat Mat Min Traps Triggered . | . . . . Indirectly . | . . . . Trap Hack Attempts . | . . . . Triggered . | . . . . Disarmed . | . . . . Reprogrammed . | . . . . Reused . | . . . . Traps Extracted . | . . . . Installed . | . . . . Triggered . | . . . . Machines | -11 -10 -9 -9 ---------- Run | Yrd Mat Mat Min Machines Disabled 8 | . 2 3 3 Max in Single Turn 2 | . 2 2 1 Machines Repaired . | . . . . Machines Dismantled . | . . . . Machines Sabotaged . | . . . . Overloaded Fab Kills . | . . . . Hacking | -11 -10 -9 -9 --------- Run | Yrd Mat Mat Min Machines Accessed 2 | . . 2 . Terminals 1 | . . 1 . Fabricators . | . . . . Repair Stations 1 | . . 1 . Recycling Units . | . . . . Scanalyzers . | . . . . Garrison Access . | . . . . Total Hacks 6 | . . 6 . Successful 2 | . . 2 . Failed 4 | . . 4 . Catastrophic . | . . . . Database Lockouts . | . . . . Manual 2 | . . 2 . Terminals 3 | . . 3 . Fabricators . | . . . . Repair Stations 3 | . . 3 . Recycling Units . | . . . . Scanalyzers . | . . . . Garrison Access . | . . . . Terminal Hacks 1 | . . 1 . Zone Layout 1 | . . 1 . Fabricator Hacks . | . . . . Repair Station Hacks 1 | . . 1 . Scan Component 1 | . . 1 . Recycling Unit Hacks . | . . . . Scanalyzer . | . . . . Garrison Access Hacks . | . . . . Unauthorized Hacks . | . . . . Terminals . | . . . . Fabricators . | . . . . Repair Stations . | . . . . Recycling Units . | . . . . Scanalyzers . | . . . . Garrison Access . | . . . . Data Cores Recovered . | . . . . Used . | . . . . Hacking Detections 2 | . . 2 . Full Trace Events 1 | . . 1 . Feedback Events . | . . . . Feedback Blocked . | . . . . Robot Schematics Acquired . | . . . . Robots Built . | . . . . Authchips . | . . . . Time . | . . . . Total Robot Build Rating . | . . . . Part Schematics Acquired . | . . . . Parts Built . | . . . . Authchips . | . . . . Time . | . . . . Total Part Build Rating . | . . . . Part Studies Acquired . | . . . . Parts Repaired . | . . . . Time . | . . . . Parts Recycled . | . . . . Recycled Matter . | . . . . Retrieved Matter . | . . . . Retrieved Components . | . . . . Parts Scanalyzed . | . . . . Part Schematics Acquired . | . . . . Parts Damaged . | . . . . Bothacking | -11 -10 -9 -9 ------------ Run | Yrd Mat Mat Min Used RIF Installer . | . . . . Robots Hacked . | . . . . Non-combat . | . . . . Combat . | . . . . Robot Hacks Applied . | . . . . Relay Couplers Released . | . . . . Fabnet Peak Effective % . | . . . . Robots Rewired . | . . . . Allies Hacked . | . . . . Hacks Repelled . | . . . . Allies | -11 -10 -9 -9 -------- Run | Yrd Mat Mat Min Total Allies . | . . . . Largest Group . | . . . . Highest-Rated Group . | . . . . Highest-Rated Ally . | . . . . Total Orders . | . . . . Ally Attacks . | . . . . Total Damage . | . . . . Kills . | . . . . Allies Corrupted . | . . . . Allies Melted . | . . . . Intel | -11 -10 -9 -9 ------- Run | Yrd Mat Mat Min Active Infowar (turns) 564 | 52 80 283 149 Terrain 313 | . . 164 149 Seismic 251 | 52 80 119 . Robot Analysis Total . | . . . . Derelict Logs Recovered 1 | . . . 1 Drone Launches . | . . . . Drone Recoveries . | . . . . Exploration | -11 -10 -9 -9 ------------- Run | Yrd Mat Mat Min Turns Passed 895 | 157 80 344 314 Spaces Moved 525 | 74 33 195 223 Core 18 | 11 . . 7 Treads 160 | . . 25 135 Legs 266 | 63 33 170 . Wheels . | . . . . Hover . | . . . . Flight 81 | . . . 81 Fastest Speed 34 | 50 120 120 34 Average Speed 117 | 109 120 125 112 Slowest Speed 160 | 120 120 160 160 Overloaded Moves . | . . . . Propulsion Burnouts . | . . . . Robots Hopped . | . . . . Potential Cave-ins 5 | . 3 . 2 Cave-ins Triggered 1 | . . . 1 Exploration Rate (%) 17 | 5 10 16 39 Regions Visited 3 Branch Regions 1 Pre-discovered Areas . | . . . . Known Exits Taken . | . . . . Unknown Exits Taken 3 | 1 1 1 . Scrap Searched 2 | . . . 2 Spaces Dug 68 | 2 7 31 28 Terrain Destroyed 233 | 2 12 99 120 Melee . | . . . . Projectile 16 | 2 7 7 . AOE 217 | . 5 92 120 Terrain Rammed 2 | . . 2 . Walls Destroyed . | . . . . Machines Disabled . | . . . . Actions | -11 -10 -9 -9 --------- Run | Yrd Mat Mat Min Total 664 | 110 44 247 263 Wait 11 | . . 4 7 Move 521 | 73 32 194 222 Hop . | . . . . Pick Up 26 | 12 . 6 8 Fast Attach . | . . . . Attach 21 | 7 . 10 4 Detach . | . . . . Swap 4 | 1 1 2 . Drop 2 | . . 2 . Fire 77 | 17 11 27 22 Melee . | . . . . Ram 2 | . . 2 . Kick . | . . . . Crush . | . . . . Escape Stasis . | . . . . Rewire . | . . . . Trap . | . . . . Miscellaneous . | . . . . Route ------- -11/Scrapyard -10/Materials -9/Materials -9/Mines History --------- Turn | Location | Event 6 | -11/Scrapyard | Discovered new exit (range 16) 158 | -11/Scrapyard | Entered Materials 228 | -10/Materials | Discovered new exit (range 8) 238 | -10/Materials | Entered another Materials area 238 | -9/Materials | Evolved 2 slots: Utility x2 310 | -9/Materials | Build established: Mutant 377 | -9/Materials | Discovered new exit (range 14) 392 | -9/Materials | Lost 7 parts (1p1n1u4w) 582 | -9/Materials | Entered Mines 631 | -9/Mines | Assembled infested the area 636 | -9/Mines | Assisted by a Guerilla fighting off Assembled 653 | -9/Mines | Core integrity fell below 50% 693 | -9/Mines | Lost 3 parts (1u2w) 772 | -9/Mines | Learned Materials emergency access door positions 871 | -9/Mines | Core integrity fell below 20% 872 | -9/Mines | Lost 3 parts (1p2n) 896 | -9/Mines | Crushed by falling debris 896 | -9/Mines | Smashed by cave-in Last Messages --------------- 00867_ as-11112 destroyed. 00867_ Destroyed Asb. Hover Unit. 00870_ The unstable cave ceiling collapses. 00871_ as-44875 destroyed. 00871_ as-86313 destroyed. 00877_ Acquired 54 matter. 00877_ Acquired 5 matter. 00887_ Laser Drill disabled. 00887_ Flight Unit destroyed. 00887_ Destroyed Flight Unit. 00887_ Imp. Terrain Scanner destroyed. 00887_ Destroyed Imp. Terrain Scanner. 00887_ VTOL Module destroyed. 00887_ Destroyed VTOL Module. 00889_ Z:KJ|NPQMUILZXMRPCL